lending/lending_fUSD_20260104
["ID","MTS","AMOUNT","RATE_DAILY","PERIOD"]
[400446740,1767562358294,-150.0,0.00048858,30]
[400446741,1767562358320,-150.0,0.00048878,30]
[400446742,1767562358346,-150.0,0.00048878,30]
[400446743,1767562358372,-3730.82015487,0.00048889,120]
[400446744,1767562358401,-150.0,0.00048895,30]
[400446745,1767562358426,-165.88198389,0.000489,120]
[400446746,1767562358452,-5000.0,0.000489,120]
[400446747,1767562358478,-150.0,0.00048901,30]
[400446748,1767562358504,-150.0,0.00048914,30]
[400446749,1767562358529,-1049.15,0.0004892,120]
[400446750,1767562358555,-150.0,0.00048939,30]
[400446751,1767562358581,-150.0,0.00048939,30]
[400446752,1767562358607,-150.0,0.00048945,30]
[400446753,1767562358632,-150.0,0.0004895,30]
[400446754,1767562358658,-150.0,0.00048959,30]
[400446755,1767562358684,-150.0,0.00048979,30]
[400446756,1767562358711,-150.0,0.00048982,30]
[400446757,1767562358736,-208.0,0.0004899,30]
[400446758,1767562358761,-584.43276654,0.00048998,120]
[400446759,1767562358787,-310.01258997,0.00049,120]
[400446760,1767562358812,-790.76147345,0.00049,30]
[400446761,1767562358837,-156.24049278,0.00049,120]
[400446762,1767562358863,-330.30529588,0.00049,30]
[400446763,1767562358888,-3458.44935798,0.00049,120]
[400446764,1767562358913,-2122.64730827,0.00049,120]
[400446765,1767562358940,-3190.6801762,0.00049,120]
[400446766,1767562358966,-150.0,0.00049,120]
[400446767,1767562358992,-1000.0,0.00049,120]
[400446768,1767562359017,-5112.0,0.00049,30]
[400446769,1767562359044,-150.0,0.00049,30]
[400446770,1767562359070,-150.0,0.00049,30]
[400446771,1767562359097,-368.81,0.00049027,120]
[400446772,1767562359124,-150.0,0.00049032,30]
[400446773,1767562359150,-150.0,0.00049049,30]
[400446774,1767562359176,-150.0,0.00049049,30]
[400446775,1767562359202,-150.0,0.00049057,30]
[400446776,1767562359228,-150.0,0.0004906,30]
[400446777,1767562359254,-150.0,0.00049061,30]
[400446778,1767562359287,-150.0,0.00049061,30]
[400446779,1767562359314,-150.0,0.00049116,30]
[400446780,1767562359342,-150.0,0.00049119,30]
[400446781,1767562359370,-150.0,0.00049123,30]
[400446782,1767562359399,-150.0,0.00049123,30]
[400446783,1767562359435,-150.0,0.00049135,30]
[400446784,1767562359466,-500.0,0.00049139,60]
[400446785,1767562359493,-150.0,0.0004917,30]
[400446786,1767562359519,-150.0,0.00049184,30]
[400446787,1767562359545,-150.0,0.00049184,30]
[400446788,1767562359572,-150.0,0.00049184,30]
[400446789,1767562359597,-150.0,0.00049184,30]
[400446790,1767562359623,-153.0,0.000492,120]
[400446791,1767562359769,-150.0,0.00049205,30]
[400446792,1767562359796,-150.0,0.00049213,30]
[400446793,1767562359823,-150.0,0.00049245,30]
[400446794,1767562359848,-150.0,0.00049245,30]
[400446795,1767562359874,-150.0,0.00049251,30]
[400446796,1767562359900,-150.0,0.0004928,30]
[400446797,1767562359925,-150.0,0.0004928,30]
[400446798,1767562359951,-150.0,0.00049291,30]
[400446799,1767562359977,-150.0,0.00049292,30]
[400446800,1767562360002,-150.0,0.00049306,30]
[400446801,1767562360028,-150.0,0.00049306,30]
[400446802,1767562360054,-10000.0,0.00049315,120]
[400446803,1767562360080,-3729.27429568,0.00049315,120]
[400446804,1767562360106,-150.0,0.00049319,30]
[400446805,1767562360131,-150.0,0.00049319,30]
[400446806,1767562360157,-150.0,0.00049368,30]
[400446807,1767562360183,-150.0,0.00049368,30]
[400446808,1767562360208,-150.0,0.00049369,30]
[400446809,1767562360233,-150.0,0.00049379,30]
[400446810,1767562360261,-150.0,0.00049386,30]
[400446811,1767562360287,-150.0,0.0004939,30]
[400446812,1767562360313,-153.0,0.000494,120]
[400446813,1767562360339,-150.0,0.00049408,30]
[400446814,1767562360365,-150.0,0.00049429,30]
[400446815,1767562360393,-150.0,0.00049429,30]
[400446816,1767562360429,-150.0,0.00049447,30]
[400446817,1767562360457,-150.0,0.00049453,30]
[400446818,1767562360487,-150.0,0.00049466,30]
[400446819,1767562360514,-150.0,0.0004949,30]
[400446820,1767562360541,-150.0,0.0004949,30]
[400446821,1767562360569,-1030.31143304,0.000495,120]
[400446822,1767562360596,-150.0,0.000495,30]
[400446823,1767562360624,-150.0,0.00049521,30]
[400446824,1767562360652,-150.0,0.00049526,30]
[400446825,1767562360678,-150.0,0.00049551,30]
[400446826,1767562360705,-150.0,0.00049551,30]
[400446827,1767562360731,-150.0,0.00049553,30]
[400446828,1767562360757,-150.0,0.00049588,30]
[400446829,1767562360783,-150.0,0.00049588,30]
[400446830,1767562360808,-150.0,0.00049604,30]
[400446831,1767562360833,-150.0,0.0004961,30]
[400446832,1767562360859,-150.0,0.00049613,30]
[400446833,1767562360883,-150.0,0.00049613,30]
[400446834,1767562360910,-1420.23,0.00049613,30]
[400446835,1767562360936,-150.0,0.00049633,30]
[400446836,1767562360962,-150.0,0.0004964,30]
[400446837,1767562360988,-150.0,0.00049655,30]
[400446838,1767562361013,-150.0,0.00049658,30]
[400446839,1767562361039,-180.97619222,0.00049658,30]
[400446840,1767562361064,-150.0,0.00049665,30]
[400446841,1767562361091,-150.0,0.00049674,30]
[400446842,1767562361116,-150.0,0.00049674,30]
[400446843,1767562361142,-150.0,0.00049682,30]
[400446844,1767562361168,-150.0,0.0004972,30]
[400446845,1767562361199,-150.0,0.00049723,30]
[400446846,1767562361225,-150.0,0.00049727,30]
[400446847,1767562361250,-150.0,0.00049735,30]
[400446848,1767562361276,-150.0,0.00049735,30]
[400446849,1767562361301,-150.0,0.0004976,30]
[400446850,1767562361327,-2014.0,0.0004978,71]
[400446851,1767562361354,-150.0,0.0004979,30]
[400446852,1767562361380,-150.0,0.00049796,30]
[400446853,1767562361407,-150.0,0.00049796,30]
[400446854,1767562361432,-1259.94765259,0.000498,30]
[400446855,1767562361459,-1383.14031248,0.000498,120]
[400446856,1767562361487,-5101.44001998,0.000498,120]
[400446857,1767562361514,-150.0,0.00049814,30]
[400446858,1767562361540,-150.0,0.0004983,30]
[400446859,1767562361568,-150.0,0.00049838,30]
[400446860,1767562361595,-150.0,0.00049858,30]
[400446861,1767562361623,-150.0,0.00049858,30]
[400446862,1767562361649,-150.0,0.00049858,30]
[400446863,1767562361675,-150.0,0.00049858,30]
[400446864,1767562361702,-150.0,0.00049858,30]
[400446865,1767562361731,-2015.0,0.0004986,63]
[400446866,1767562361757,-2707.85,0.000499,120]
[400446867,1767562361784,-347.01514017,0.000499,30]
[400446868,1767562361811,-385.84416544,0.000499,120]
[400446869,1767562361839,-6226.06427143,0.000499,120]
[400446870,1767562361864,-5000.0,0.000499,120]
[400446871,1767562361892,-150.0,0.00049901,30]
[400446872,1767562361919,-150.0,0.00049916,30]
[400446873,1767562361948,-150.0,0.00049919,30]
[400446874,1767562361975,-150.0,0.00049919,30]
[400446875,1767562362005,-150.0,0.00049925,30]
[400446876,1767562362032,-150.0,0.0004994,30]
[400446877,1767562362061,-150.0,0.0004998,30]
[400446878,1767562362087,-150.0,0.0004998,30]
[400446879,1767562362113,-150.0,0.00049988,30]
[400446880,1767562362139,-2608.38047147,0.0004999,120]
[400446881,1767562362163,-3449.25363366,0.0004999,120]
[400446882,1767562362191,-150.0,0.00049992,30]
[400446883,1767562362219,-150.0,0.00049994,30]
[400446884,1767562362249,-150.0,0.0005,40]
[400446885,1767562362276,-308.24,0.0005,120]
[400446886,1767562362432,-499.99999901,0.0005,120]
[400446887,1767562362459,-1000.0,0.0005,120]
[400446888,1767562362485,-454.17299913,0.0005,120]
[400446889,1767562362511,-172.78203343,0.0005,120]
[400446890,1767562362537,-5747.72724367,0.0005,120]
[400446891,1767562362564,-2936.74480604,0.0005,120]
[400446892,1767562362591,-653.68539724,0.0005,120]
[400446893,1767562362618,-565.75888687,0.0005,120]
[400446894,1767562362645,-5001.78551984,0.0005,120]
[400446895,1767562362671,-659.35515436,0.0005,120]
[400446896,1767562362698,-1368.52689784,0.0005,120]
[400446897,1767562362724,-1228.93029918,0.0005,30]
[400446898,1767562362749,-1087.28256246,0.0005,120]
[400446899,1767562362774,-225.58849455,0.0005,120]
[400446900,1767562362799,-500.0,0.0005,30]
[400446901,1767562362825,-1531.95501391,0.0005,120]
[400446902,1767562362851,-3164.90946708,0.0005,120]
[400446903,1767562362877,-1106.81089084,0.0005,120]
[400446904,1767562362903,-200.0,0.0005,120]
[400446905,1767562362930,-178.10863096,0.0005,120]
[400446906,1767562362958,-2128.7709219,0.0005,120]
[400446907,1767562362983,-1322.96656509,0.0005,120]
[400446908,1767562363010,-3692.45317652,0.0005,60]
[400446909,1767562363035,-10064.0,0.0005,120]
[400446910,1767562363061,-2500.0,0.0005,30]
[400446911,1767562363088,-101986.58598283,0.0005,60]
[400446912,1767562363113,-166475.90215813,0.0005,30]
[400446913,1767562363140,-127171.51193476,0.0005,30]
[400446914,1767562363167,-200.0,0.0005,120]
[400446915,1767562363194,-746.0,0.0005,120]
[400446916,1767562363220,-476.61370368,0.0005,120]
[400446917,1767562363247,-150.0,0.0005,120]
[400446918,1767562363275,-1401.94452661,0.0005,120]
[400446919,1767562363301,-4118.63857872,0.0005,30]
[400446920,1767562363328,-1000.0,0.0005,120]
[400446921,1767562363353,-862.03810842,0.0005,120]
[400446922,1767562363380,-150.0,0.0005,120]
[400446923,1767562363409,-500.0,0.0005,60]
[400446924,1767562363438,-150.0,0.00050041,30]
[400446925,1767562363467,-150.0,0.00050041,30]
[400446926,1767562363494,-150.0,0.0005005,30]
[400446927,1767562363520,-150.0,0.0005005,30]
[400446928,1767562363547,-150.0,0.0005006,30]
[400446929,1767562363574,-150.0,0.00050072,30]
[400446930,1767562363601,-150.0,0.00050075,30]
[400446931,1767562363626,-150.0,0.00050082,30]
[400446932,1767562363652,-1000.0,0.000501,120]
[400446933,1767562363678,-153.0,0.000501,120]
[400446934,1767562363705,-150.0,0.00050103,30]
[400446935,1767562363732,-150.0,0.00050103,30]
[400446936,1767562363759,-150.0,0.00050127,30]
[400446937,1767562363786,-150.0,0.00050127,30]
[400446938,1767562363813,-150.0,0.0005015,30]
[400446939,1767562363839,-150.0,0.0005016,30]
[400446940,1767562363864,-150.0,0.00050162,30]
[400446941,1767562363890,-150.0,0.00050164,30]
[400446942,1767562363916,-150.0,0.00050164,30]
[400446943,1767562363946,-150.0,0.00050194,30]
[400446944,1767562363976,-153.0,0.000502,120]
[400446945,1767562364006,-150.0,0.00050225,30]
[400446946,1767562364035,-150.0,0.00050225,30]
[400446947,1767562364064,-150.0,0.00050229,30]
[400446948,1767562364095,-500.0,0.00050235,60]
[400446949,1767562364123,-150.0,0.00050249,30]
[400446950,1767562364154,-150.0,0.00050262,30]
[400446951,1767562364186,-150.0,0.0005027,30]
[400446952,1767562364215,-150.0,0.00050286,30]
[400446953,1767562364243,-150.0,0.00050286,30]
[400446954,1767562364271,-150.0,0.00050307,30]
[400446955,1767562364298,-150.0,0.00050307,30]
[400446956,1767562364328,-150.0,0.00050329,30]
[400446957,1767562364355,-150.0,0.00050336,30]
[400446958,1767562364382,-150.0,0.00050348,30]
[400446959,1767562364418,-150.0,0.00050348,30]
[400446960,1767562364445,-150.0,0.0005038,30]
[400446961,1767562364474,-150.0,0.00050385,30]
[400446962,1767562364502,-150.0,0.00050397,30]
[400446963,1767562364529,-150.0,0.00050397,30]
[400446964,1767562364557,-150.0,0.00050409,30]
[400446965,1767562364585,-150.0,0.00050409,30]
[400446966,1767562364614,-150.0,0.00050423,30]
[400446967,1767562364644,-150.0,0.00050435,30]
[400446968,1767562364676,-150.0,0.00050463,30]
[400446969,1767562364705,-150.0,0.00050464,30]
[400446970,1767562364732,-150.0,0.0005047,30]
[400446971,1767562364760,-150.0,0.0005047,30]
[400446973,1767562364786,-150.0,0.0005049,30]
[400446974,1767562364813,-150.0,0.0005051,30]
[400446975,1767562364840,-150.0,0.00050531,30]
[400446976,1767562364866,-150.0,0.00050531,30]
[400446977,1767562364894,-150.0,0.00050531,30]
[400446978,1767562364922,-150.0,0.00050531,30]
[400446979,1767562364948,-150.0,0.00050541,30]
[400446980,1767562364975,-150.0,0.00050593,30]
[400446981,1767562365001,-150.0,0.00050593,30]
[400446983,1767562365152,-150.0,0.00050596,30]
[400446984,1767562365183,-150.0,0.00050599,30]
[400446985,1767562365212,-150.0,0.000506,30]
[400446986,1767562365239,-150.0,0.00050619,30]
[400446987,1767562365266,-150.0,0.00050654,30]
[400446988,1767562365292,-150.0,0.00050654,30]
[400446989,1767562365321,-150.0,0.00050666,30]
[400446990,1767562365348,-150.0,0.00050666,30]
[400446991,1767562365375,-150.0,0.00050683,30]
[400446992,1767562365405,-150.0,0.00050697,30]
[400446994,1767562365433,-150.0,0.0005071,30]
[400446995,1767562365462,-150.0,0.00050715,30]
[400446996,1767562365490,-150.0,0.00050715,30]
[400446997,1767562365517,-150.0,0.00050733,30]
[400446998,1767562365544,-150.0,0.00050756,30]
[400446999,1767562365572,-150.0,0.0005077,30]
[400447000,1767562365600,-150.0,0.00050775,30]
[400447001,1767562365628,-150.0,0.00050776,30]
[400447002,1767562365656,-150.0,0.00050776,30]
[400447003,1767562365682,-150.0,0.00050801,30]
[400447004,1767562365709,-150.0,0.0005082,30]
[400447006,1767562365736,-150.0,0.0005082,30]
[400447007,1767562365762,-150.0,0.00050838,30]
[400447008,1767562365789,-150.0,0.00050838,30]
[400447009,1767562365816,-150.0,0.00050853,30]
[400447010,1767562365841,-150.0,0.00050857,30]
[400447011,1767562365867,-150.0,0.00050868,30]
[400447012,1767562365893,-150.0,0.00050899,30]
[400447013,1767562365919,-150.0,0.00050899,30]
[400447014,1767562365946,-153.0,0.000509,120]
[400447015,1767562365972,-5000.0,0.000509,120]
[400447016,1767562366002,-150.0,0.0005093,30]
[400447017,1767562366029,-150.0,0.00050932,30]
[400447019,1767562366057,-150.0,0.00050936,30]
[400447020,1767562366085,-150.0,0.00050936,30]
[400447021,1767562366114,-150.0,0.00050944,30]
[400447022,1767562366141,-150.0,0.0005096,30]
[400447023,1767562366168,-150.0,0.0005096,30]
[400447024,1767562366198,-150.0,0.0005098,30]
[400447025,1767562366223,-35114.24848526,0.00051,30]
[400447026,1767562366249,-150.0,0.00051,40]
[400447027,1767562366276,-2000.0,0.00051,120]
[400447028,1767562366303,-1000.0,0.00051,120]
[400447029,1767562366329,-384.15963286,0.00051,120]
[400447030,1767562366356,-1375.44646682,0.00051,120]
[400447031,1767562366384,-153.0,0.00051,120]
[400447032,1767562366416,-150.0,0.00051,120]
[400447033,1767562366446,-306.45,0.00051,30]
[400447034,1767562366475,-602.03,0.00051,30]
[400447035,1767562366504,-150.0,0.00051003,30]
[400447036,1767562366532,-150.0,0.0005101,30]
[400447037,1767562366559,-150.0,0.00051021,30]
[400447038,1767562366585,-150.0,0.00051021,30]
[400447039,1767562366613,-150.0,0.00051031,30]
[400447040,1767562366639,-150.0,0.0005104,30]
[400447041,1767562366668,-150.0,0.0005107,30]
[400447042,1767562366695,-600.0,0.00051077,120]
[400447043,1767562366720,-600.0,0.00051077,120]
[400447044,1767562366747,-150.0,0.00051083,30]
[400447045,1767562366773,-150.0,0.00051083,30]
[400447046,1767562366803,-150.0,0.00051088,30]
[400447047,1767562366829,-300.75918393,0.0005109,120]
[400447048,1767562366855,-243.69022498,0.000511,120]
[400447049,1767562366884,-150.0,0.00051118,30]
[400447050,1767562366912,-150.0,0.00051138,30]
[400447051,1767562366939,-150.0,0.00051144,30]
[400447052,1767562366966,-150.0,0.00051144,30]
[400447053,1767562366994,-150.0,0.0005115,30]
[400447054,1767562367020,-150.0,0.00051166,30]
[400447055,1767562367049,-1654.38253428,0.000512,120]
[400447056,1767562367075,-235781.34492997,0.000512,60]
[400447057,1767562367102,-150.0,0.00051205,30]
[400447058,1767562367130,-150.0,0.00051205,30]
[400447059,1767562367158,-150.0,0.00051205,30]
[400447060,1767562367185,-150.0,0.00051205,30]
[400447061,1767562367212,-150.0,0.00051205,30]
[400447062,1767562367241,-150.0,0.00051205,30]
[400447063,1767562367268,-150.0,0.00051205,30]
[400447064,1767562367295,-150.0,0.00051205,30]
[400447065,1767562367323,-150.0,0.00051205,30]
[400447066,1767562367352,-150.0,0.00051244,30]
[400447067,1767562367380,-150.0,0.0005126,30]
[400447068,1767562367412,-150.0,0.00051266,30]
[400447069,1767562367442,-150.0,0.00051266,30]
[400447070,1767562367472,-150.0,0.00051272,30]
[400447071,1767562367500,-150.0,0.00051292,30]
[400447072,1767562367536,-150.0,0.00051322,30]
[400447073,1767562367570,-150.0,0.00051328,30]
[400447074,1767562367599,-150.0,0.00051328,30]
[400447075,1767562367628,-500.0,0.00051331,60]
[400447076,1767562367656,-150.0,0.0005134,30]
[400447077,1767562367682,-150.0,0.0005137,30]
[400447078,1767562367709,-150.0,0.00051379,30]
[400447079,1767562367737,-150.0,0.00051389,30]
[400447080,1767562367765,-150.0,0.00051389,30]
[400447081,1767562367969,-150.0,0.000514,30]
[400447082,1767562367998,-150.0,0.00051407,30]
[400447083,1767562368027,-150.0,0.0005143,30]
[400447084,1767562368055,-150.0,0.0005145,30]
[400447085,1767562368083,-150.0,0.0005145,30]
[400447086,1767562368110,-150.0,0.00051466,30]
[400447087,1767562368137,-150.0,0.00051475,30]
[400447088,1767562368164,-150.0,0.00051475,30]
[400447089,1767562368191,-150.0,0.00051478,30]
[400447090,1767562368217,-150.0,0.0005148,30]
[400447091,1767562368244,-150.0,0.00051511,30]
[400447092,1767562368272,-150.0,0.00051511,30]
[400447093,1767562368299,-150.0,0.00051542,30]
[400447094,1767562368327,-150.0,0.00051553,30]
[400447095,1767562368355,-150.0,0.00051557,30]
[400447096,1767562368383,-150.0,0.00051573,30]
[400447097,1767562368414,-150.0,0.00051573,30]
[400447098,1767562368443,-150.0,0.0005159,30]
[400447099,1767562368470,-150.0,0.0005159,30]
[400447100,1767562368497,-150.0,0.00051609,30]
[400447101,1767562368526,-150.0,0.00051634,30]
[400447102,1767562368553,-150.0,0.00051634,30]
[400447103,1767562368580,-150.0,0.00051635,30]
[400447104,1767562368607,-150.0,0.0005164,30]
[400447105,1767562368634,-150.0,0.00051654,30]
[400447106,1767562368662,-150.0,0.00051677,30]
[400447107,1767562368689,-150.0,0.00051695,30]
[400447108,1767562368717,-150.0,0.00051695,30]
[400447109,1767562368744,-225.93788913,0.000517,120]
[400447110,1767562368771,-150.0,0.000517,30]
[400447111,1767562368798,-150.0,0.00051713,30]
[400447112,1767562368823,-150.0,0.00051727,30]
[400447113,1767562368848,-150.0,0.00051744,30]
[400447114,1767562368874,-150.0,0.00051744,30]
[400447115,1767562368902,-150.0,0.00051756,30]
[400447116,1767562368928,-150.0,0.00051756,30]
[400447117,1767562368954,-150.0,0.00051791,30]
[400447118,1767562368979,-153.0,0.000518,120]
[400447119,1767562369006,-153.0,0.000518,120]
[400447120,1767562369031,-150.0,0.0005181,30]
[400447121,1767562369058,-150.0,0.00051811,30]
[400447122,1767562369084,-150.0,0.00051814,30]
[400447123,1767562369111,-150.0,0.00051818,30]
[400447124,1767562369138,-150.0,0.00051818,30]
[400447125,1767562369167,-150.0,0.00051869,30]
[400447126,1767562369197,-150.0,0.00051879,30]
[400447127,1767562369224,-150.0,0.00051879,30]
[400447128,1767562369251,-150.0,0.00051879,30]
[400447129,1767562369280,-150.0,0.00051879,30]
[400447130,1767562369307,-5000.0,0.000519,120]
[400447131,1767562369336,-150.0,0.000519,30]
[400447132,1767562369363,-150.0,0.0005192,30]
[400447133,1767562369392,-150.0,0.0005194,30]
[400447134,1767562369422,-150.0,0.0005194,30]
[400447135,1767562369450,-150.0,0.00051946,30]
[400447136,1767562369477,-150.0,0.00051947,30]
[400447137,1767562369504,-150.0,0.00051975,30]
[400447138,1767562369531,-1664.94898219,0.0005198,110]
[400447139,1767562369558,-150.0,0.00051987,30]
[400447140,1767562369584,-3304.72007724,0.00052,120]
[400447141,1767562369610,-200.0,0.00052,40]
[400447142,1767562369637,-2000.0,0.00052,120]
[400447143,1767562369664,-1000.0,0.00052,120]
[400447144,1767562369690,-202.23,0.00052,120]
[400447145,1767562369716,-307.07375719,0.00052,120]
[400447146,1767562369741,-1630.8757316,0.00052,120]
[400447147,1767562369767,-6038.3416888,0.00052,120]
[400447148,1767562369792,-171.45563213,0.00052,120]
[400447149,1767562369817,-19833.39335331,0.00052,30]
[400447150,1767562369843,-10000.0,0.00052,120]
[400447151,1767562369868,-4673.534139,0.00052,30]
[400447152,1767562369894,-150.0,0.00052,120]
[400447153,1767562369921,-150.0,0.00052001,30]
[400447154,1767562369947,-150.0,0.00052001,30]
[400447155,1767562369974,-150.0,0.00052014,30]
[400447156,1767562370000,-150.0,0.00052014,30]
[400447157,1767562370027,-150.0,0.00052025,30]
[400447158,1767562370053,-150.0,0.0005203,30]
[400447159,1767562370079,-271.95027127,0.00052055,30]
[400447160,1767562370106,-151.0,0.00052055,30]
[400447161,1767562370134,-500.0,0.00052055,30]
[400447162,1767562370162,-500.0,0.00052055,30]
[400447163,1767562370190,-414.0,0.00052055,30]
[400447164,1767562370216,-151.0,0.00052055,30]
[400447165,1767562370242,-500.0,0.00052055,30]
[400447166,1767562370270,-500.0,0.00052055,30]
[400447167,1767562370297,-429.318,0.00052055,30]
[400447168,1767562370324,-151.0,0.00052055,30]
[400447169,1767562370354,-500.0,0.00052055,30]
[400447170,1767562370384,-445.202766,0.00052055,30]
[400447171,1767562370414,-151.0,0.00052055,30]
[400447172,1767562370441,-151.0,0.00052055,30]
[400447173,1767562370470,-500.0,0.00052055,30]
[400447174,1767562370496,-151.0,0.00052055,30]
[400447175,1767562370524,-560.52016778,0.00052055,30]
[400447176,1767562370682,-156.587,0.00052055,30]
[400447177,1767562370715,-500.0,0.00052055,30]
[400447178,1767562370743,-151.0,0.00052055,30]
[400447179,1767562370773,-250.0,0.00052055,30]
[400447180,1767562370801,-162.380719,0.00052055,30]
[400447181,1767562370831,-500.0,0.00052055,30]
[400447182,1767562370858,-187.91894042,0.00052055,30]
[400447183,1767562370887,-254.856,0.00052055,30]
[400447184,1767562370913,-168.3888056,0.00052055,30]
[400447185,1767562370940,-151.0,0.00052055,30]
[400447186,1767562370968,-500.0,0.00052055,30]
[400447187,1767562370994,-251.28457237,0.00052055,30]
[400447188,1767562371020,-151.0,0.00052055,30]
[400447189,1767562371048,-500.0,0.00052055,30]
[400447190,1767562371074,-500.0,0.00052055,30]
[400447191,1767562371101,-151.0,0.00052055,30]
[400447192,1767562371128,-500.0,0.00052055,30]
[400447193,1767562371156,-500.0,0.00052055,30]
[400447194,1767562371182,-500.0,0.00052055,30]
[400447195,1767562371208,-500.0,0.00052055,30]
[400447196,1767562371233,-250.0,0.00052055,30]
[400447197,1767562371260,-500.0,0.00052055,30]
[400447198,1767562371286,-500.0,0.00052055,30]
[400447199,1767562371313,-250.0,0.00052055,30]
[400447200,1767562371340,-500.0,0.00052055,30]
[400447201,1767562371366,-500.0,0.00052055,30]
[400447202,1767562371394,-250.0,0.00052055,30]
[400447203,1767562371427,-500.0,0.00052055,30]
[400447204,1767562371453,-500.0,0.00052055,30]
[400447205,1767562371479,-250.0,0.00052055,30]
[400447206,1767562371506,-500.0,0.00052055,30]
[400447207,1767562371532,-500.0,0.00052055,30]
[400447208,1767562371559,-250.0,0.00052055,30]
[400447209,1767562371585,-500.0,0.00052055,30]
[400447210,1767562371611,-250.0,0.00052055,30]
[400447211,1767562371638,-500.0,0.00052055,30]
[400447212,1767562371664,-250.0,0.00052055,30]
[400447213,1767562371690,-500.0,0.00052055,30]
[400447214,1767562371716,-250.0,0.00052055,30]
[400447215,1767562371742,-500.0,0.00052055,30]
[400447216,1767562371768,-250.0,0.00052055,30]
[400447217,1767562371801,-500.0,0.00052055,30]
[400447218,1767562372098,176.8649333,0.00043362,30]
[400447219,1767562372192,264.15199722,0.0004355,120]
[400447220,1767562372229,262.43479531,0.0004355,120]
[400447221,1767562372563,150.0,0.00048878,30]
[400447222,1767562373460,150.0,0.000445,30]
[400447223,1767562381882,1100.0,0.00043548,30]
[400447224,1767562382210,150.0,0.00049658,30]
[400447237,1767562543069,395.72,0.00043548,30]
[400447258,1767562795977,857.66,0.00013699,2]
[400447264,1767562988319,-1000.0,0.00015085,2]
[400447269,1767563109646,151.0,0.00043576,65]
[400447270,1767563109940,151.0,0.00043576,65]
[400447271,1767563110236,151.0,0.00043576,65]
[400447272,1767563110526,151.0,0.00043576,65]
[400447273,1767563110833,151.0,0.00043576,65]
[400447274,1767563111127,151.0,0.00043576,65]
[400447275,1767563111449,151.0,0.00043576,65]
[400447276,1767563111745,151.0,0.00043576,65]
[400447277,1767563112038,151.0,0.00043576,65]
[400447278,1767563112334,151.0,0.00043576,65]
[400447279,1767563112651,151.0,0.00043576,65]
[400447280,1767563112967,151.0,0.00043576,65]
[400447281,1767563113264,151.0,0.00043576,65]
[400447282,1767563113563,263.214272,0.00043576,65]
[400447283,1767563113635,151.000024,0.00043576,65]
[400447284,1767563115452,151.0,0.00043576,65]
[400447285,1767563119504,258.2,0.00043576,65]